bitfinex-derivatives/quotes_SOLF0:USTF0_20240911
["timestamp","ask_amount","ask_price","bid_price","bid_amount"]
[1726077873722,3.7466,133.45,133.42,3.7472]
[1726077873919,2.623,133.46,133.42,3.7472]
[1726077874124,2.623,133.46,133.42,11.51]
[1726077874331,2.623,133.46,133.38,3.8369476]
[1726077874519,6.3694,133.46,133.42,3.7472]
[1726077875423,2.623,133.46,133.43,3.7469]
[1726077875628,2.623,133.46,133.41,11.51]
[1726077877133,11.51,133.44,133.33,7.4998]
[1726077877336,15.2565,133.45,133.4,11.51]
[1726077877827,11.51,133.45,133.4,11.51]
[1726077878138,11.51,133.45,133.41,3.7475]
[1726077878523,15.2567,133.45,133.4,15.2578]
[1726077878928,3.7468,133.44,133.4,15.2578]
[1726077879128,11.51,133.45,133.41,3.7476]
[1726077879625,15.2566,133.45,133.41,3.7476]
[1726077880233,11.51,133.45,133.42,3.7472]
[1726077880838,15.2565,133.45,133.42,3.7472]
[1726077881235,15.2565,133.45,133.41,3.7475]
[1726077882731,11.51,133.44,133.38,11.51]
[1726077883033,1.308,133.46,133.4,11.51]
[1726077883237,12.818,133.46,133.4,11.51]
[1726077883738,3.7467,133.45,133.4,11.51]
[1726077884039,3.7467,133.45,133.41,3.7474]
[1726077885531,3.7467,133.45,133.42,3.7473]
[1726077885742,12.818,133.46,133.4,11.51]
[1726077886138,12.818,133.46,133.42,3.7473]
[1726077886840,12.818,133.46,133.41,3.7475]
[1726077887036,11.51,133.42,133.32,1.4204]
[1726077887238,3.7486,133.38,133.26,3.43481305]
[1726077887449,15.2586,133.38,133.32,11.51]
[1726077887955,11.51,133.38,133.34,3.7496]
[1726077888145,11.51,133.38,133.27,1.357]
[1726077888443,11.51,133.38,133.32,11.51]
[1726077889842,15.2586,133.38,133.33,3.7496]
[1726077890047,11.51,133.38,133.32,11.51]
[1726077890341,11.51,133.39,133.33,11.51]
[1726077891135,3.7485,133.38,133.33,15.2597]
[1726077891847,11.51,133.38,133.33,11.51]
[1726077892044,11.51,133.36,133.3,11.51]
[1726077892346,15.2592,133.36,133.3,11.51]
[1726077892545,15.2592,133.36,133.32,3.7501]
[1726077892750,11.51,133.36,133.32,3.7501]
[1726077893242,11.51,133.36,133.32,15.2601]
[1726077893830,15.2592,133.36,133.32,11.51]
[1726077894444,11.51,133.38,133.33,15.2599]
[1726077894747,11.51,133.38,133.33,11.51]
[1726077895045,12.834,133.4,133.34,11.51]
[1726077895437,16.5821,133.4,133.35,3.7491]
[1726077895636,16.5821,133.4,133.34,11.51]
[1726077896140,16.5821,133.4,133.36,3.7489]
[1726077896842,12.834,133.4,133.37,3.7487]
[1726077897041,2.8404,133.41,133.36,11.51]
[1726077897349,2.8404,133.41,133.37,11.51]
[1726077897837,2.8404,133.41,133.38,3.7484]
[1726077898042,2.8404,133.41,133.38,11.51]
[1726077898435,2.8404,133.41,133.39,3.748]
[1726077899041,2.8404,133.41,133.38,15.2584]
[1726077899340,2.8404,133.41,133.38,3.7484]
[1726077899746,6.588,133.41,133.37,15.2586]
[1726077900141,2.8404,133.41,133.37,11.51]
[1726077900542,2.8404,133.41,133.36,11.51]
[1726077900946,15.258,133.4,133.33,1.4051]
[1726077901152,15.258,133.4,133.35,11.51]
[1726077901446,3.7486,133.38,133.34,15.2595]
[1726077901649,11.51,133.39,133.28,1.3714]
[1726077901850,11.51,133.39,133.33,11.51]
[1726077902148,11.51,133.38,133.32,11.51]
[1726077902546,15.2587,133.38,133.33,3.7498]
[1726077902847,11.51,133.38,133.32,11.51]
[1726077903049,3.7492,133.36,133.31,3.7504]
[1726077903454,3.7492,133.36,133.3,11.51]
[1726077903640,3.7492,133.36,133.3,15.2606]
[1726077903940,3.7492,133.36,133.3,11.51]
[1726077904141,3.7492,133.36,133.31,11.51]
[1726077904547,3.7492,133.36,133.29,18.01]
[1726077904744,3.7492,133.36,133.31,3.7504]
[1726077904943,3.7488,133.37,133.31,3.7504]
[1726077905558,3.7491,133.36,133.31,3.7504]
[1726077906350,3.7488,133.37,133.31,3.7504]
[1726077907040,3.7492,133.36,133.3,3.7506]
[1726077907245,3.7492,133.36,133.29,18.01]
[1726077907246,7.458325,133.36,133.29,18.01]
[1726077907550,18.01,133.39,133.29,18.01]
[1726077907750,3.7489,133.37,133.29,18.01]
[1726077908452,20.8504,133.41,133.31,18.01]
[1726077908847,3.7484,133.39,133.33,3.7498]
[1726077909040,20.8504,133.41,133.31,18.01]
[1726077909450,3.7489,133.37,133.32,3.7501]
[1726077910349,7.456625,133.36,133.3,18.01]
[1726077910653,3.749,133.36,133.3,18.01]
[1726077910850,3.749,133.36,133.31,3.7502]
[1726077911054,7.4285,133.36,133.31,3.7502]
[1726077911254,3.7493,133.35,133.3,18.01]
[1726077911446,18.01,133.39,133.31,3.7504]
[1726077912147,3.7488,133.37,133.31,3.7504]
[1726077912347,3.658875,133.36,133.31,3.7504]
[1726077913157,3.7488,133.37,133.32,3.75]
[1726077913746,20.8504,133.41,133.32,18.01]
[1726077913952,2.8404,133.41,133.32,18.01]
[1726077914457,3.748,133.4,133.35,3.7491]
[1726077915054,3.7489,133.37,133.3,18.01]
[1726077915558,3.7486,133.38,133.33,3.7498]
[1726077916158,20.8504,133.41,133.3,18.01]
[1726077916159,3.7488,133.37,133.32,3.75]
[1726077917947,3.749,133.36,133.32,3.75]
[1726077918657,3.749,133.36,133.3,18.01]
[1726077918956,7.435625,133.36,133.31,3.7502]
[1726077919169,7.435625,133.36,133.28,1.3714]
[1726077919170,3.686625,133.36,133.29,18.01]
[1726077919464,18.01,133.37,133.28,1.3714]
[1726077919769,6.5095,133.35,133.3,3.7505]
[1726077920062,2.7601,133.35,133.28,19.3814]
[1726077920471,2.7601,133.35,133.31,3.7503]
[1726077921363,6.5094,133.35,133.31,3.7503]
[1726077922259,2.7601,133.35,133.32,3.7501]
[1726077927066,6.5095,133.35,133.32,3.7501]
[1726077927268,11.53,133.34,133.24,7.18966538]
[1726077927467,2.7601,133.35,133.28,11.53]
[1726077927468,11.53,133.33,133.28,11.53]
[1726077927665,11.53,133.34,133.28,11.53]
[1726077927973,7.9422,133.35,133.31,3.7504]
[1726077928173,4.1926,133.35,133.29,11.53]
[1726077928970,7.9419,133.35,133.31,3.7503]
[1726077929578,7.9419,133.35,133.32,3.7501]
[1726077930366,11.53,133.38,133.32,11.53]
[1726077930559,225.0,133.49,133.31,11.53]
[1726077930560,11.53,133.37,133.31,11.53]
[1726077930761,3.7491,133.36,133.33,3.7498]
[1726077930959,3.7491,133.36,133.31,11.53]
[1726077931370,3.81761572,133.36,133.31,11.53]
[1726077932165,3.7495,133.35,133.31,15.2804]
[1726077932872,15.2795,133.35,133.31,3.7504]
[1726077933264,11.53,133.35,133.32,3.7501]
[1726077934674,15.2793,133.35,133.32,3.7501]
[1726077934877,11.53,133.35,133.29,11.53]
[1726077935076,11.53,133.34,133.28,11.53]
[1726077935880,11.53,133.34,133.31,3.7502]
[1726077936080,11.53,133.34,133.28,11.53]
[1726077936275,2.6657,133.37,133.29,11.53]
[1726077936474,15.2793,133.35,133.29,11.53]
[1726077936875,11.53,133.34,133.29,11.53]
[1726077937380,11.53,133.34,133.31,3.7503]
[1726077939375,11.53,133.33,133.3,3.7506]
[1726077945372,11.53,133.34,133.29,11.53]
[1726077945681,11.53,133.36,133.3,11.53]
[1726077946582,3.748,133.4,133.35,3.7491]
[1726077946779,11.53,133.38,133.33,11.53]
[1726077946980,11.53,133.38,133.32,11.53]
[1726077947175,15.2785,133.38,133.33,3.7496]
[1726077947896,11.53,133.36,133.33,3.7496]
[1726077948584,11.53,133.36,133.3,11.53]
[1726077948781,11.53,133.35,133.3,11.53]
[1726077949384,11.53,133.34,133.31,3.7504]
[1726077950684,11.53,133.34,133.32,3.7501]
[1726077951391,11.53,133.34,133.27,11.53]
[1726077952293,11.53,133.32,133.27,11.53]
[1726077952588,11.53,133.32,133.26,11.53]
[1726077953890,11.53,133.32,133.3,3.7507]
[1726077954994,11.53,133.32,133.31,3.7504]
[1726077956494,11.53,133.34,133.32,3.7501]
[1726077959694,11.53,133.34,133.31,3.7502]
[1726077960085,11.53,133.32,133.31,3.7502]
[1726077960298,11.53,133.33,133.27,11.53]
[1726077960592,11.53,133.33,133.32,3.7501]
[1726077960998,11.53,133.33,133.24,5.07426792]
[1726077961188,11.53,133.3,133.24,5.07426792]
[1726077961388,11.53,133.31,133.25,11.53]
[1726077962295,11.53,133.34,133.28,11.53]
[1726077964087,11.53,133.34,133.31,3.7502]
[1726077964499,11.53,133.34,133.24,5.07426792]
[1726077964500,11.53,133.35,133.29,11.53]
[1726077964793,228.0,133.48,133.24,1.3268]
[1726077964998,2.7319,133.45,133.36,11.53]
[1726077965199,11.53,133.42,133.36,15.20904713]
[1726077965997,11.53,133.42,133.39,3.748]
[1726077968202,11.53,133.42,133.4,3.7478]
[1726077968502,11.53,133.42,133.36,15.20904713]
[1726077968699,2.7319,133.45,133.37,11.53]
[1726077969003,2.7319,133.45,133.37,12.9135]
[1726077969004,11.53,133.44,133.37,12.9135]
[1726077969305,11.53,133.43,133.37,12.9135]
[1726077969603,11.53,133.43,133.39,3.748]
[1726077970406,11.53,133.43,133.4,3.7478]
[1726077970895,11.53,133.43,133.37,12.9135]
[1726077971202,11.53,133.43,133.39,3.748]
[1726077971404,11.53,133.43,133.37,12.9135]
[1726077971601,11.53,133.44,133.41,3.7475]
[1726077971808,11.53,133.44,133.37,12.9135]
[1726077972207,11.53,133.44,133.42,3.7473]
[1726077972608,11.53,133.44,133.37,12.9135]
[1726077972909,11.53,133.44,133.41,3.7475]
[1726077975614,11.53,133.43,133.41,3.7475]
[1726077976615,11.53,133.43,133.4,3.7478]
[1726077976812,11.53,133.43,133.37,12.9135]
[1726077977113,11.53,133.43,133.4,3.7477]
[1726077977515,11.53,133.43,133.37,12.9135]
[1726077978221,2.7319,133.45,133.37,12.9135]
[1726077978410,11.53,133.44,133.37,12.9135]
[1726077979117,11.53,133.43,133.41,3.7475]
[1726077979711,11.53,133.43,133.37,12.9135]
[1726077979912,11.53,133.43,133.37,1.3835]
[1726077981317,11.53,133.43,133.4,3.7477]
[1726077987124,11.53,133.43,133.41,3.7476]
[1726077990723,11.51,133.44,133.41,3.7476]
[1726077993829,11.51,133.42,133.4,3.7478]
[1726077994127,11.51,133.43,133.37,1.3835]
[1726077994335,11.51,133.41,133.4,3.7477]
[1726077994521,11.51,133.43,133.4,3.7477]
[1726077995221,11.51,133.41,133.36,3.80538271]
[1726077995426,2.7319,133.45,133.36,3.80538271]
[1726077995621,11.51,133.42,133.39,3.7481]
[1726077996231,11.51,133.42,133.36,15.31538271]
[1726077996432,11.51,133.42,133.36,3.80538271]
[1726077996631,11.51,133.4,133.32,1.4213]
[1726077996926,11.51,133.4,133.34,11.51]
[1726077997130,11.51,133.4,133.35,3.65817091]
[1726077997328,11.51,133.4,133.38,3.7484]
[1726077998833,3.7472,133.43,133.38,3.7484]
[1726077999035,11.51,133.41,133.38,3.7484]
[1726078000028,11.51,133.41,133.35,15.16817091]
[1726078000535,11.51,133.41,133.38,3.7482]
[1726078005035,11.51,133.41,133.39,3.7482]
[1726078005241,11.51,133.41,133.37,11.51]
[1726078005844,11.51,133.41,133.38,3.7483]
[1726078007644,11.51,133.4,133.37,3.7486]
[1726078007947,11.51,133.42,133.36,11.51]
[1726078008334,11.51,133.42,133.38,3.7483]
[1726078008833,11.51,133.42,133.36,15.2655289]
[1726078009840,11.51,133.42,133.38,3.7483]
[1726078010639,3.7472,133.43,133.39,3.7481]
[1726078010844,11.51,133.42,133.39,3.7481]
[1726078011556,3.747,133.44,133.39,3.7481]
[1726078011843,11.51,133.44,133.38,11.51]
[1726078012244,11.51,133.44,133.38,15.27349167]
[1726078012545,11.51,133.44,133.4,3.7477]
[1726078013245,11.51,133.44,133.41,3.7476]
[1726078013647,11.51,133.44,133.38,15.27349167]
[1726078013952,11.51,133.44,133.39,3.7481]
[1726078014844,11.51,133.44,133.4,3.7479]
[1726078014845,15.2569,133.44,133.4,3.7479]
[1726078015840,11.51,133.43,133.39,3.748]
[1726078016037,15.2571,133.43,133.39,3.748]
[1726078017944,11.51,133.41,133.39,3.748]
[1726078018147,11.51,133.41,133.37,3.7487]
[1726078018148,15.2576,133.41,133.37,3.7487]
[1726078018345,11.51,133.4,133.37,3.7487]
[1726078019841,11.51,133.4,133.38,3.7484]
[1726078020041,11.51,133.41,133.38,3.7484]
[1726078020242,11.51,133.41,133.35,11.51]
[1726078020243,11.51,133.41,133.36,11.51]
[1726078020439,15.2572,133.43,133.39,3.748]
[1726078021150,11.51,133.43,133.4,3.7477]
[1726078021343,2.7319,133.45,133.4,3.7477]
[1726078021344,11.51,133.44,133.4,3.7477]
[1726078021851,11.51,133.43,133.39,3.748]
[1726078022145,11.51,133.41,133.36,11.51]
[1726078022347,11.51,133.4,133.32,5.17570437]
[1726078022650,11.51,133.4,133.21,80.50245368]
[1726078022651,11.51,133.36,133.31,11.51]
[1726078022845,11.51,133.36,133.3,11.51]
[1726078023047,11.51,133.34,133.29,11.51]
[1726078023263,11.51,133.34,133.25,3.44219746]
[1726078023264,11.51,133.34,133.27,11.51]
[1726078023448,11.51,133.33,133.24,7.16061073]
[1726078023753,11.51,133.33,133.26,11.51]
[1726078023754,11.51,133.31,133.26,11.51]
[1726078024248,11.51,133.3,133.26,3.7518]
[1726078024847,1.3519,133.32,133.27,3.7514]
[1726078025045,11.51,133.31,133.26,11.51]
[1726078025247,11.51,133.31,133.24,3.71841327]
[1726078025448,11.51,133.31,133.26,3.7518]
[1726078025853,11.51,133.31,133.27,3.7515]
[1726078026044,11.51,133.3,133.22,1.3716]
[1726078026350,11.51,133.27,133.22,3.7528]
[1726078026657,11.51,133.26,133.22,3.7528]
[1726078026841,11.51,133.27,133.21,11.51]
[1726078027041,11.51,133.27,133.2,125.33785848]
[1726078027042,11.51,133.27,133.23,11.51]
[1726078027255,11.51,133.27,133.23,15.1716743]
[1726078027646,11.51,133.27,133.24,3.7523]
[1726078029253,11.51,133.27,133.21,11.51]
[1726078029660,11.51,133.27,133.23,3.7524]
[1726078029852,11.51,133.27,133.23,7.47134934]
[1726078030051,11.51,133.27,133.23,3.71894934]
[1726078030357,11.51,133.27,133.21,11.51]
[1726078031053,11.51,133.27,133.2,125.33785848]
[1726078031252,11.51,133.26,133.2,136.84785848]
[1726078031658,12.8975,133.27,133.22,11.51]
[1726078032161,12.8975,133.27,133.23,3.7526]
[1726078032360,11.51,133.26,133.2,136.84785848]
[1726078032564,11.51,133.26,133.22,3.7527]
[1726078033159,11.51,133.26,133.23,3.7526]
[1726078033359,1.3875,133.27,133.22,11.51]
[1726078033568,1.3875,133.27,133.23,3.81116192]
[1726078033863,1.3875,133.27,133.24,3.7522]
[1726078035060,12.8975,133.27,133.22,3.7527]
[1726078035260,2.7622,133.27,133.2,136.84785848]
[1726078035462,14.2722,133.27,133.22,11.51]
[1726078035661,14.2722,133.27,133.24,3.7522]
[1726078037155,1.3875,133.27,133.25,3.7519]
[1726078037966,1.3875,133.27,133.26,3.7518]
[1726078040767,1.3606,133.29,133.27,3.7515]
[1726078040965,1.3606,133.29,133.24,11.51]
[1726078041160,1.3606,133.29,133.25,11.51]
[1726078041363,11.51,133.31,133.28,3.751]
[1726078042666,5.063,133.33,133.29,3.7509]
[1726078042667,11.51,133.32,133.29,3.7509]
[1726078043576,12.823,133.33,133.28,11.51]
[1726078043967,1.313,133.33,133.29,11.51]
[1726078044163,1.313,133.33,133.32,3.7501]
[1726078044369,1.4313,133.34,133.32,3.7501]
[1726078044669,1.4313,133.34,133.29,11.51]
[1726078045783,11.51,133.33,133.3,3.7506]
[1726078048178,11.51,133.33,133.31,3.7504]
[1726078048370,11.51,133.33,133.2,132.84475848]
[1726078048569,11.51,133.33,133.27,11.51]
[1726078048766,11.51,133.33,133.29,3.7508]
[1726078049174,11.51,133.32,133.27,11.51]
[1726078049571,11.51,133.32,133.28,3.751]
[1726078049872,11.51,133.32,133.27,11.51]
[1726078050780,11.51,133.32,133.29,3.751]
[1726078052884,11.51,133.32,133.28,3.7511]
[1726078053076,11.51,133.32,133.27,11.51]
[1726078053785,11.51,133.33,133.29,3.7508]
[1726078055084,11.51,133.31,133.22,1.44]
[1726078055280,11.51,133.31,133.24,11.51]
[1726078055481,11.51,133.31,133.24,15.3329705]
[1726078055681,15.2607,133.31,133.26,3.7517]
[1726078055886,15.29845497,133.31,133.24,11.51]
[1726078056081,11.51,133.29,133.24,11.51]
[1726078056282,11.51,133.29,133.26,3.7518]
[1726078057189,11.51,133.3,133.26,3.7518]
[1726078057492,11.51,133.3,133.24,11.51]
[1726078058484,11.51,133.3,133.26,3.7517]
[1726078059885,11.51,133.3,133.24,11.51]
[1726078060085,11.51,133.3,133.27,3.7515]
[1726078060797,11.51,133.3,133.26,3.7517]
[1726078064691,15.261,133.29,133.25,3.7521]
[1726078064894,12.8257,133.29,133.25,3.7521]
[1726078066688,11.51,133.27,133.23,11.51]
[1726078066991,11.51,133.27,133.21,180.70562056]
[1726078067894,15.2617,133.27,133.23,3.7526]
[1726078068796,11.51,133.27,133.23,3.7526]
[1726078069696,15.2618,133.26,133.21,169.19562056]
[1726078069890,11.51,133.25,133.19,11.51]
[1726078070191,11.51,133.22,133.19,3.7536]
[1726078070595,11.51,133.22,133.16,3.78751136]
[1726078070793,11.51,133.22,133.17,11.51]
[1726078072887,11.51,133.22,133.19,3.7538]
[1726078073087,11.51,133.21,133.15,11.51]
[1726078073395,11.51,133.2,133.15,11.51]
[1726078074000,11.51,133.2,133.14,11.51]
[1726078074296,11.51,133.2,133.15,3.7549]
[1726078074494,11.51,133.17,133.15,3.7549]
[1726078077096,11.51,133.17,133.12,15.21636406]
[1726078077097,11.51,133.17,133.14,3.7551]
[1726078079203,11.51,133.16,133.13,3.7553]
[1726078079714,11.51,133.16,133.14,3.7551]
[1726078080196,11.51,133.16,133.1,15.35085949]
[1726078080394,12.65,133.16,133.15,3.7549]
[1726078080596,12.65,133.16,133.1,15.35085949]
[1726078080802,1.14,133.16,133.12,11.51]
[1726078080997,1.14,133.16,133.15,3.7549]
[1726078081397,1.14,133.16,133.12,3.7556]
[1726078081604,1.14,133.16,133.09,11.51]
[1726078081605,12.65,133.16,133.09,11.51]
[1726078081797,11.51,133.14,133.09,11.51]
[1726078081999,11.51,133.11,133.06,2.7082]
[1726078082204,11.51,133.11,133.05,11.51]
[1726078082803,11.51,133.11,133.08,3.7567]
[1726078083110,1.3171,133.13,133.03,1.3403]
[1726078083111,11.51,133.1,133.03,1.3403]
[1726078083406,11.51,133.1,133.04,11.51]
[1726078084006,11.51,133.1,133.09,3.7566]
[1726078084205,12.9008,133.12,133.09,3.7566]
[1726078084404,1.3908,133.12,133.09,3.7566]
[1726078084812,1.3171,133.13,133.1,3.7563]
[1726078085104,1.3171,133.13,133.05,18.02]
[1726078085309,1.3171,133.13,133.1,3.7562]
[1726078086302,1.3171,133.13,133.09,3.7564]
[1726078087307,1.3171,133.13,133.1,3.7562]
[1726078087506,1.3171,133.13,133.05,18.02]
[1726078088067,1.3171,133.13,133.12,3.7558]
[1726078088307,1.14,133.16,133.09,3.70538733]
[1726078088515,1.14,133.16,133.12,3.7556]
[1726078088713,1.14,133.16,133.09,3.7166579]
[1726078088901,1.14,133.16,133.07,18.02]
[1726078090503,1.14,133.16,133.08,1.3736]
[1726078090906,3.04,133.15,133.14,3.755]
[1726078106421,3.04,133.15,133.14,15.295]
[1726078106817,2.73,133.16,133.15,3.7549]
[1726078107017,2.73,133.16,133.15,15.2949]
[1726078107321,11.54,133.22,133.15,11.54]
[1726078107907,11.54,133.22,133.17,3.7543]
[1726078108109,11.54,133.21,133.17,3.7543]
[1726078109021,11.54,133.21,133.18,3.7541]
[1726078109210,12.68,133.21,133.18,3.7541]
[1726078114023,1.14,133.21,133.18,3.7541]
[1726078114222,1.14,133.21,133.19,3.7537]
[1726078114429,1.14,133.21,133.19,11.54]
[1726078114729,1.14,133.21,133.2,15.2448626]
[1726078114919,1.14,133.21,133.2,18.9983626]
[1726078115227,11.54,133.26,133.2,15.2448626]
[1726078115432,4.171,133.3,133.22,11.54]
[1726078115433,11.54,133.27,133.22,11.54]
[1726078115726,11.54,133.27,133.23,3.7526]
[1726078115919,11.54,133.26,133.2,15.36692885]
[1726078116122,18.01,133.27,133.2,3.82692885]
[1726078116327,21.7616,133.27,133.17,18.01]
[1726078117418,21.7616,133.27,133.22,3.7528]
[1726078117618,18.01,133.27,133.22,3.7528]
[1726078117818,18.01,133.27,133.13,1.4047]
[1726078118123,4.171,133.3,133.13,1.4047]
[1726078118326,18.01,133.21,133.11,21.84704394]
[1726078118623,18.01,133.21,133.16,3.7544]
[1726078119125,20.7118,133.21,133.16,3.7544]
[1726078119826,20.7118,133.21,133.15,3.70384268]
[1726078120033,2.7018,133.21,133.13,18.01]
[1726078120220,2.7018,133.21,133.13,21.67637508]
[1726078120926,2.7018,133.21,133.18,3.7539]
[1726078121523,2.7018,133.21,133.19,3.7538]
[1726078123426,1.3599,133.23,133.15,18.01]
[1726078124519,1.3599,133.23,133.19,3.7536]
[1726078125920,1.3599,133.23,133.2,3.7534]
[1726078126420,1.3599,133.23,133.19,3.7537]
[1726078127025,1.3599,133.23,133.18,3.7539]
[1726078127326,18.01,133.22,133.13,3.66637508]
[1726078127524,18.01,133.22,133.11,18.01]
[1726078127727,18.01,133.22,133.11,21.71655821]
[1726078128141,18.01,133.22,133.17,3.7542]
[1726078128320,18.01,133.22,133.13,18.01]
[1726078128522,1.3599,133.23,133.13,18.01]
[1726078129133,1.3599,133.23,133.19,3.7536]
[1726078129325,1.3599,133.23,133.15,18.01]
[1726078130130,1.3599,133.23,133.15,21.80504504]
[1726078130828,1.3599,133.23,133.18,3.7538]
[1726078131030,1.3599,133.23,133.15,21.80504504]
[1726078131430,1.3599,133.23,133.15,3.79504504]
[1726078131633,21.763,133.22,133.12,18.01]
[1726078131932,21.763,133.22,133.12,21.83695195]
[1726078132129,21.763,133.22,133.16,3.7545]
[1726078132328,3.7533,133.21,133.12,21.83695195]
[1726078134330,3.7535,133.2,133.15,3.7547]
[1726078134533,18.01,133.2,133.15,3.7547]
[1726078135732,21.7636,133.2,133.15,3.7547]
[1726078136427,18.01,133.2,133.15,3.7547]
[1726078139141,1.3599,133.23,133.12,3.82695195]
[1726078139142,21.7631,133.22,133.17,3.7543]
[1726078140144,3.7534,133.21,133.12,21.83695195]
[1726078140339,18.01,133.22,133.12,21.83695195]
[1726078140545,1.3599,133.23,133.14,18.01]
[1726078141640,5.1126,133.23,133.18,3.7539]
[1726078141945,1.3599,133.23,133.16,18.01]
[1726078142752,1.3599,133.23,133.2,3.7533]
[1726078143239,2.8013,133.24,133.21,3.7532]
[1726078143440,18.01,133.29,133.2,18.01]
[1726078143847,4.1618,133.3,133.23,3.7525]
[1726078144055,3.7511,133.29,133.23,3.7525]
[1726078146439,3.7511,133.29,133.24,3.7524]
[1726078147952,7.9126,133.3,133.22,18.01]
[1726078148458,7.9126,133.3,133.25,3.7519]
[1726078149953,21.7612,133.29,133.2,18.01]
[1726078150248,4.1618,133.3,133.19,3.805175]
[1726078150249,18.01,133.27,133.19,3.805175]
[1726078150450,18.01,133.27,133.17,18.01]
[1726078150656,3.7518,133.26,133.17,18.01]
[1726078151255,23.1415,133.25,133.17,18.01]
[1726078151550,18.01,133.23,133.13,18.4768]
[1726078151753,6.48849737,133.25,133.17,3.7541]
[1726078151754,18.01,133.21,133.17,3.7541]
[1726078152055,18.01,133.21,133.13,0.4668]
[1726078152256,18.01,133.21,133.16,3.7545]
[1726078152555,18.01,133.21,133.13,0.4668]
[1726078152759,18.01,133.23,133.19,3.7536]
[1726078152961,18.01,133.23,133.13,18.4768]
[1726078153156,21.7627,133.23,133.13,18.4768]
[1726078153552,21.7627,133.23,133.17,3.7542]
[1726078154761,21.7627,133.23,133.18,3.7541]
[1726078157964,21.7627,133.23,133.19,3.7538]
[1726078158358,1.4034,133.24,133.21,3.7531]
[1726078158557,19.4134,133.24,133.21,3.7531]
[1726078158763,19.4134,133.24,133.13,18.4768]
[1726078158965,1.4034,133.24,133.13,0.4668]
[1726078159266,18.01,133.22,133.13,0.4668]
[1726078159465,18.01,133.22,133.19,3.7537]
[1726078159869,1.4034,133.24,133.19,3.80621142]
[1726078160067,1.4034,133.24,133.21,3.7531]
[1726078161461,2.8127,133.25,133.19,3.68008844]
[1726078161657,2.8127,133.25,133.18,18.01]
[1726078161861,18.01,133.29,133.2,18.01]
[1726078162166,18.01,133.29,133.25,3.752]
[1726078162762,18.01,133.29,133.26,3.7518]
[1726078162968,2.7265,133.3,133.21,18.01]
[1726078163161,2.7265,133.3,133.21,18.4768]
[1726078163369,2.7265,133.3,133.26,3.7516]
[1726078164169,2.7265,133.3,133.27,3.7515]
[1726078164969,2.7265,133.3,133.21,18.4768]
[1726078164970,2.7265,133.3,133.28,3.7512]
[1726078167064,2.7265,133.3,133.29,3.751]
[1726078167461,20.7365,133.3,133.2,3.79419971]